lending/lending_fUSD_20240128
["ID","MTS","AMOUNT","RATE_DAILY","PERIOD"]
[312921819,1706461869480,-500.0,0.00052876,31]
[312921820,1706461869489,-2295.74,0.00052876,31]
[312921821,1706461869498,-709.25,0.00052876,31]
[312921822,1706461869507,-500.0,0.00052876,31]
[312921823,1706461869517,-500.0,0.00052876,31]
[312921824,1706461869526,-500.0,0.00052876,31]
[312921825,1706461869535,-642.2,0.00052876,31]
[312921826,1706461869544,-500.0,0.00052876,31]
[312921827,1706461869553,-500.0,0.00052876,31]
[312921828,1706461869564,-500.0,0.00052876,31]
[312921829,1706461869573,-834.44,0.00052876,31]
[312921830,1706461869582,-500.0,0.00052876,31]
[312921831,1706461869591,-1117.28,0.00052876,31]
[312921832,1706461869600,-500.0,0.00052876,31]
[312921833,1706461869609,-500.0,0.00052876,31]
[312921834,1706461869618,-500.0,0.00052876,31]
[312921835,1706461869627,-500.0,0.00052876,31]
[312921836,1706461869636,-500.0,0.00052876,31]
[312921837,1706461869645,-500.0,0.00052876,31]
[312921838,1706461869655,-500.0,0.00052876,31]
[312921839,1706461869664,-500.0,0.00052876,31]
[312921840,1706461869673,-500.0,0.00052876,31]
[312921841,1706461869682,-500.0,0.00052876,31]
[312921842,1706461869691,-500.0,0.00052876,31]
[312921843,1706461869701,-500.0,0.00052876,31]
[312921844,1706461869710,-500.0,0.00052876,31]
[312921845,1706461869720,-557.23,0.00052876,31]
[312921846,1706461869729,-500.0,0.00052876,31]
[312921847,1706461869738,-500.0,0.00052876,31]
[312921848,1706461869747,-500.0,0.00052876,31]
[312921849,1706461869757,-651.16,0.00052876,31]
[312921850,1706461869766,-806.83,0.00052876,31]
[312921851,1706461869775,-2058.6,0.00052876,31]
[312921852,1706461869785,-500.0,0.00052876,31]
[312921853,1706461869794,-730.25,0.00052876,31]
[312921854,1706461869803,-500.0,0.00052876,31]
[312921855,1706461869813,-500.0,0.00052876,31]
[312921856,1706461869822,-500.0,0.00052876,31]
[312921857,1706461869831,-667.21,0.00052876,31]
[312921858,1706461869840,-318.98779836,0.00052876,31]
[312921859,1706461869849,-500.0,0.00052876,31]
[312921860,1706461869859,-500.0,0.00052876,31]
[312921861,1706461869868,-500.0,0.00052876,31]
[312921862,1706461869877,-500.0,0.00052876,31]
[312921863,1706461869886,-500.0,0.00052876,31]
[312921864,1706461869896,-500.0,0.00052876,31]
[312921865,1706461869905,-500.0,0.00052876,31]
[312921866,1706461869914,-500.0,0.00052876,31]
[312921867,1706461869924,-500.0,0.00052876,31]
[312921868,1706461869933,-500.0,0.00052876,31]
[312921869,1706461869942,-500.0,0.00052876,31]
[312921870,1706461869951,-500.0,0.00052876,31]
[312921871,1706461869960,-500.0,0.00052876,31]
[312921872,1706461869969,-500.0,0.00052876,31]
[312921873,1706461869978,-500.0,0.00052876,31]
[312921874,1706461869987,-500.0,0.00052876,31]
[312921875,1706461869996,-500.0,0.00052876,31]
[312921876,1706461870005,-1000.0,0.00052876,31]
[312921877,1706461870014,-500.0,0.00052876,31]
[312921878,1706461870024,-565.54,0.00052876,31]
[312921879,1706461870033,-500.0,0.00052876,31]
[312921880,1706461870042,-500.0,0.00052876,31]
[312921881,1706461870052,-500.0,0.00052876,31]
[312921882,1706461870061,-362.38153009,0.00052876,31]
[312921883,1706461870070,-500.0,0.00052876,31]
[312921884,1706461870079,-625.13,0.00052876,31]
[312921885,1706461870088,-500.0,0.00052876,31]
[312921886,1706461870098,-500.0,0.00052876,31]
[312921887,1706461870107,-1000.07,0.00052876,31]
[312921888,1706461870116,-500.0,0.00052876,31]
[312921889,1706461870126,-500.0,0.00052876,31]
[312921890,1706461870135,-543.15,0.00052876,31]
[312921891,1706461870145,-5121.69,0.00052876,31]
[312921892,1706461870154,-500.0,0.00052876,31]
[312921893,1706461870163,-500.0,0.00052876,31]
[312921894,1706461870172,-500.0,0.00052876,31]
[312921895,1706461870182,-722.32,0.00052876,31]
[312921896,1706461870191,-500.0,0.00052876,31]
[312921897,1706461870200,-528.28,0.00052876,31]
[312921898,1706461870209,-1171.0,0.00052876,31]
[312921899,1706461870218,-500.0,0.00052876,31]
[312921900,1706461870228,-364.65295794,0.00052876,31]
[312921901,1706461870236,-500.0,0.00052876,31]
[312921902,1706461870246,-500.0,0.00052876,31]
[312921903,1706461870255,-500.0,0.00052876,31]
[312921904,1706461870264,-500.0,0.00052876,31]
[312921905,1706461870273,-856.58,0.00052876,31]
[312921906,1706461870282,-500.0,0.00052876,31]
[312921907,1706461870291,-500.0,0.00052876,31]
[312921908,1706461870301,-851.16,0.00052876,31]
[312921909,1706461870310,-504.37,0.00052876,31]
[312921910,1706461870319,-500.0,0.00052876,31]
[312921911,1706461870328,-500.0,0.00052876,31]
[312921912,1706461870338,-3631.05,0.00052876,31]
[312921913,1706461870347,-500.0,0.00052876,31]
[312921914,1706461870356,-876.85,0.00052876,31]
[312921915,1706461870365,-780.4,0.00052876,31]
[312921916,1706461870374,-398.36225332,0.00052876,31]
[312921917,1706461870383,-500.0,0.00052876,31]
[312921918,1706461870392,-500.0,0.00052876,31]
[312921919,1706461870401,-1037.01,0.00052876,31]
[312921920,1706461870412,-500.0,0.00052876,31]
[312921921,1706461870421,-500.0,0.00052876,31]
[312921922,1706461870429,-8393.83,0.00052876,31]
[312921923,1706461870438,-500.0,0.00052876,31]
[312921924,1706461870447,-798.98,0.00052876,31]
[312921925,1706461870456,-500.0,0.00052876,31]
[312921926,1706461870465,-922.9,0.00052876,31]
[312921927,1706461870475,-524.34,0.00052876,31]
[312921928,1706461870491,-500.0,0.00052876,31]
[312921929,1706461870500,-259.0989902,0.00052876,31]
[312921930,1706461870509,-1822.32,0.00052876,31]
[312921931,1706461870518,-500.0,0.00052876,31]
[312921932,1706461870529,-500.0,0.00052876,31]
[312921933,1706461870538,-500.0,0.00052876,31]
[312921934,1706461870548,-500.0,0.00052876,31]
[312921935,1706461870559,-500.0,0.00052876,31]
[312921936,1706461870569,-500.0,0.00052876,31]
[312921937,1706461870578,-500.0,0.00052876,31]
[312921938,1706461870587,-500.0,0.00052876,2]
[312921939,1706461870596,-604.09,0.00052876,31]
[312921940,1706461870605,-500.0,0.00052876,31]
[312921941,1706461870615,-500.0,0.00052876,31]
[312921942,1706461870624,-511.29,0.00052876,31]
[312921943,1706461870633,-500.0,0.00052876,31]
[312921944,1706461870642,-500.0,0.00052876,31]
[312921945,1706461870652,-500.0,0.00052876,31]
[312921946,1706461870661,-500.0,0.00052876,31]
[312921947,1706461870670,-500.0,0.00052876,31]
[312921948,1706461870679,-500.0,0.00052876,7]
[312921949,1706461870689,-329.00242111,0.00052876,31]
[312921950,1706461870698,-500.0,0.00052876,31]
[312921951,1706461870707,-500.0,0.00052876,31]
[312921952,1706461870716,-500.0,0.00052876,2]
[312921953,1706461870726,-3178.15,0.00052876,5]
[312921954,1706461870736,-500.0,0.00052876,31]
[312921955,1706461870746,-500.0,0.00052876,31]
[312921956,1706461870755,-2847.83,0.00052876,31]
[312921957,1706461870764,-500.0,0.00052876,31]
[312921958,1706461870774,-500.0,0.00052876,31]
[312921959,1706461870783,-500.0,0.00052876,2]
[312921960,1706461870792,-500.0,0.00052876,31]
[312921961,1706461870802,-500.0,0.00052876,31]
[312921962,1706461870812,-2441.51959086,0.00052879,2]
[312921963,1706461870821,-150.34028937,0.00052879,60]
[312921964,1706461870830,-1248.3644934,0.00052881,60]
[312921965,1706461870841,-150.0,0.00052888,7]
[312921966,1706461870850,-177.9880503,0.00052888,60]
[312921967,1706461870860,-300.0,0.00052889,7]
[312921968,1706461870869,-152.18,0.0005289,120]
[312921969,1706461870879,-158.32544091,0.00052893,60]
[312921970,1706461870888,-95791.1372051,0.00052895,2]
[312921971,1706461870898,-3523.3130944,0.00052895,2]
[312921972,1706461870907,-150.0,0.00052896,7]
[312921973,1706461870917,-1000.0,0.00052899,120]
[312921974,1706461870926,-187781.88196042,0.000529,10]
[312921975,1706461870935,-100000.0,0.000529,30]
[312921976,1706461870945,-1255.26074372,0.000529,30]
[312921977,1706461870954,-213.36069912,0.000529,60]
[312921978,1706461870964,-99497.18731719,0.000529,30]
[312921979,1706461870974,-1132.87344757,0.000529,30]
[312921980,1706461870983,-300.0,0.000529,31]
[312921981,1706461870992,-200.0,0.000529,31]
[312921982,1706461871002,-3000.0,0.000529,67]
[312921983,1706461871011,-150.0,0.000529,7]
[312921984,1706461871021,-516.46328289,0.000529,14]
[312921985,1706461871031,-200.0,0.000529,2]
[312921986,1706461871041,-156.0,0.000529,120]
[312921987,1706461871052,-360.32885597,0.00052909,60]
[312921988,1706461871205,-1208.0,0.0005291,2]
[312921989,1706461871215,-5611.490318,0.0005291,67]
[312921990,1706461871225,-150.0,0.00052911,30]
[312921991,1706461871234,-150.0,0.00052911,30]
[312921992,1706461871243,-150.0,0.00052911,30]
[312921993,1706461871252,-150.0,0.00052911,30]
[312921994,1706461871261,-150.0,0.00052911,30]
[312921995,1706461871271,-150.0,0.00052911,30]
[312921996,1706461871280,-150.0,0.00052911,30]
[312921997,1706461871290,-287.87291238,0.00052913,60]
[312921998,1706461871301,-1248.3644934,0.00052914,60]
[312921999,1706461871310,-168.56932696,0.00052915,60]
[312922000,1706461871320,-360.32885597,0.00052916,60]
[312922001,1706461871329,-60942.0,0.0005292,30]
[312922002,1706461871339,-2361.0,0.0005292,30]
[312922003,1706461871348,-150.50894753,0.0005292,60]
[312922004,1706461871357,-175.62864033,0.00052923,60]
[312922005,1706461871366,-155.46597402,0.00052935,60]
[312922006,1706461871375,-150.50894753,0.00052935,60]
[312922007,1706461871385,-158.32544091,0.00052939,60]
[312922008,1706461871395,-1495.18324462,0.0005294,60]
[312922009,1706461871404,-155.9745539,0.0005294,60]
[312922010,1706461871413,-155.46597402,0.00052942,60]
[312922011,1706461871422,-1248.3644934,0.0005295,60]
[312922012,1706461871432,-360.32885597,0.00052955,60]
[312922013,1706461871441,-3891.12,0.00052956,30]
[312922014,1706461871450,-3891.12,0.00052956,30]
[312922015,1706461871459,-162.77789855,0.00052967,60]
[312922016,1706461871469,-161.06867272,0.00052971,60]
[312922017,1706461871479,-1248.3644934,0.00052972,60]
[312922018,1706461871491,-158.44565292,0.00052974,60]
[312922019,1706461871500,-155.10176526,0.00052978,60]
[312922020,1706461871509,-1248.3644934,0.00052979,60]
[312922021,1706461871518,-158.32544091,0.00052985,60]
[312922022,1706461871529,-153.60830703,0.00052987,30]
[312922023,1706461871538,-200.0,0.00052987,32]
[312922024,1706461871549,-200.0,0.00052987,38]
[312922025,1706461871559,-298.0,0.0005299,2]
[312922026,1706461871569,-250.0,0.0005299,2]
[312922027,1706461871578,-173.66367173,0.00052991,60]
[312922028,1706461871587,-287.87291238,0.00052997,60]
[312922029,1706461871596,-10318.34783038,0.00053,2]
[312922030,1706461871605,-10711.35395285,0.00053,2]
[312922031,1706461871614,-4750.0,0.00053,20]
[312922032,1706461871623,-468.90917582,0.00053,15]
[312922033,1706461871633,-1000.0,0.00053,7]
[312922034,1706461871642,-1000.0,0.00053,7]
[312922035,1706461871652,-1000.0,0.00053,7]
[312922036,1706461871661,-1000.0,0.00053,7]
[312922037,1706461871670,-1000.0,0.00053,7]
[312922038,1706461871680,-1000.0,0.00053,7]
[312922039,1706461871689,-1000.0,0.00053,7]
[312922040,1706461871699,-1000.0,0.00053,7]
[312922041,1706461871708,-1000.0,0.00053,7]
[312922042,1706461871718,-838.01,0.00053,7]
[312922043,1706461871727,-505.6605985,0.00053,30]
[312922044,1706461871736,-681.0,0.00053,60]
[312922045,1706461871746,-157.47854261,0.00053,7]
[312922046,1706461871755,-2000.0,0.00053,60]
[312922047,1706461871764,-300000.0,0.00053,30]
[312922048,1706461871773,-300.0,0.00053,54]
[312922049,1706461871782,-1000000.0,0.00053,120]
[312922050,1706461871791,-48200.0,0.00053,80]
[312922051,1706461871801,-10259.0,0.00053,14]
[312922052,1706461871811,-11699.66021499,0.00053,2]
[312922053,1706461871820,-245.63829,0.00053,14]
[312922054,1706461871830,-155.46597402,0.00053,60]
[312922055,1706461871839,-311.685356,0.00053,14]
[312922056,1706461871848,-311.685356,0.00053,14]
[312922057,1706461871858,-311.685356,0.00053,14]
[312922058,1706461871867,-311.685356,0.00053,14]
[312922059,1706461871878,-1334.294265,0.00053,14]
[312922060,1706461871888,-1334.294265,0.00053,14]
[312922061,1706461871898,-151.0,0.00053,14]
[312922062,1706461871907,-1334.294265,0.00053,14]
[312922063,1706461871916,-151.0,0.00053,14]
[312922064,1706461871926,-150.88297571,0.00053013,60]
[312922065,1706461871935,-152.82946364,0.0005302,60]
[312922066,1706461871944,-157.72167214,0.00053033,60]
[312922067,1706461871953,-162.77789855,0.00053037,60]
[312922068,1706461871963,-157.0406716,0.00053041,60]
[312922069,1706461871972,-150.50894753,0.00053045,60]
[312922070,1706461871981,-158.44565292,0.00053056,60]
[312922071,1706461871990,-150.50894753,0.00053057,60]
[312922072,1706461871999,-287.87291238,0.0005306,60]
[312922073,1706461872009,-161.06867272,0.00053081,60]
[312922074,1706461872018,-360.32885597,0.00053084,60]
[312922075,1706461872027,-1248.3644934,0.00053086,60]
[312922076,1706461872036,-150.34028937,0.00053094,60]
[312922077,1706461872047,-1495.18324462,0.00053097,60]
[312922078,1706461872055,-153.31168607,0.000531,120]
[312922079,1706461872065,-287.87291238,0.00053102,60]
[312922080,1706461872074,-158.4818493,0.00053105,60]
[312922081,1706461872083,-155.31335174,0.00053108,60]
[312922082,1706461872092,-287.87291238,0.0005311,60]
[312922083,1706461872101,-1495.18324462,0.00053116,60]
[312922084,1706461872110,-150.34028937,0.00053117,60]
[312922085,1706461872119,-158.44565292,0.00053126,60]
[312922086,1706461872128,-155.46597402,0.00053132,60]
[312922087,1706461872138,-1495.18324462,0.00053133,60]
[312922088,1706461872147,-150.0,0.00053141,120]
[312922089,1706461872156,-500.0,0.0005315,30]
[312922090,1706461872165,-500.0,0.0005315,31]
[312922091,1706461872174,-500.0,0.0005315,31]
[312922092,1706461872183,-500.0,0.0005315,30]
[312922093,1706461872192,-256.08260687,0.0005315,31]
[312922094,1706461872202,-500.0,0.0005315,31]
[312922095,1706461872211,-500.0,0.0005315,31]
[312922096,1706461872221,-500.0,0.0005315,31]
[312922097,1706461872230,-500.0,0.0005315,31]
[312922098,1706461872239,-500.0,0.0005315,31]
[312922099,1706461872249,-500.0,0.0005315,31]
[312922100,1706461872259,-500.0,0.0005315,31]
[312922101,1706461872268,-500.0,0.0005315,31]
[312922102,1706461872277,-500.0,0.0005315,31]
[312922103,1706461872287,-500.0,0.0005315,31]
[312922104,1706461872297,-1173.31,0.0005315,7]
[312922105,1706461872307,-500.0,0.0005315,31]
[312922106,1706461872316,-500.0,0.0005315,31]
[312922107,1706461872325,-500.0,0.0005315,31]
[312922108,1706461872334,-500.0,0.0005315,31]
[312922109,1706461872344,-500.0,0.0005315,31]
[312922110,1706461872353,-500.0,0.0005315,31]
[312922111,1706461872362,-500.0,0.0005315,31]
[312922112,1706461872372,-500.0,0.0005315,31]
[312922113,1706461872381,-500.0,0.0005315,31]
[312922114,1706461872390,-500.0,0.0005315,31]
[312922115,1706461872400,-500.0,0.0005315,31]
[312922116,1706461872409,-500.0,0.0005315,31]
[312922117,1706461872418,-500.0,0.0005315,31]
[312922118,1706461872427,-500.0,0.0005315,31]
[312922119,1706461872437,-500.0,0.0005315,31]
[312922120,1706461872446,-500.0,0.0005315,31]
[312922121,1706461872456,-500.0,0.0005315,31]
[312922122,1706461872465,-563.76,0.0005315,31]
[312922123,1706461872476,-799.38,0.0005315,31]
[312922124,1706461872488,-500.0,0.0005315,31]
[312922125,1706461872497,-500.0,0.0005315,31]
[312922126,1706461872507,-500.0,0.0005315,31]
[312922127,1706461872516,-500.0,0.0005315,31]
[312922128,1706461872525,-500.0,0.0005315,31]
[312922129,1706461872534,-500.0,0.0005315,31]
[312922130,1706461872548,-500.0,0.0005315,31]
[312922131,1706461872566,-500.0,0.0005315,31]
[312922132,1706461872583,-500.0,0.0005315,31]
[312922133,1706461872594,-500.0,0.0005315,31]
[312922134,1706461872609,-500.0,0.0005315,2]
[312922135,1706461872624,-500.0,0.0005315,31]
[312922136,1706461872639,-500.0,0.0005315,31]
[312922137,1706461872653,-500.0,0.0005315,31]
[312922138,1706461872665,-500.0,0.0005315,31]
[312922139,1706461872679,-1046.7,0.0005315,31]
[312922140,1706461872694,-500.0,0.0005315,31]
[312922141,1706461872708,-500.0,0.0005315,31]
[312922142,1706461872722,-928.12,0.0005315,2]
[312922143,1706461872733,-500.0,0.0005315,31]
[312922144,1706461872749,-500.0,0.0005315,31]
[312922145,1706461872764,-500.0,0.0005315,31]
[312922146,1706461872777,-524.66,0.0005315,31]
[312922147,1706461872790,-500.0,0.0005315,31]
[312922148,1706461872807,-500.0,0.0005315,31]
[312922149,1706461872822,-500.0,0.0005315,31]
[312922150,1706461872837,-500.0,0.0005315,31]
[312922151,1706461872851,-500.0,0.0005315,31]
[312922152,1706461872863,-500.0,0.0005315,31]
[312922153,1706461872874,-500.0,0.0005315,31]
[312922154,1706461872888,-500.0,0.0005315,31]
[312922155,1706461872901,-500.0,0.0005315,31]
[312922156,1706461872914,-500.0,0.0005315,31]
[312922157,1706461872926,-1095.20265134,0.0005315,31]
[312922158,1706461872938,-500.0,0.0005315,31]
[312922159,1706461872951,-500.0,0.0005315,31]
[312922160,1706461872964,-500.0,0.0005315,31]
[312922161,1706461872976,-218.08790771,0.0005315,31]
[312922162,1706461872989,-532.70596936,0.0005315,31]
[312922163,1706461873001,-1078.79,0.0005315,7]
[312922164,1706461873015,-500.0,0.0005315,31]
[312922165,1706461873026,-500.0,0.0005315,31]
[312922166,1706461873038,-500.0,0.0005315,31]
[312922167,1706461873052,-350.89720026,0.0005315,31]
[312922168,1706461873064,-500.0,0.0005315,14]
[312922169,1706461873076,-500.0,0.0005315,31]
[312922170,1706461873088,-500.0,0.0005315,31]
[312922171,1706461873101,-500.0,0.0005315,31]
[312922172,1706461873113,-500.0,0.0005315,31]
[312922173,1706461873125,-500.0,0.0005315,31]
[312922174,1706461873138,-500.0,0.0005315,31]
[312922175,1706461873149,-500.0,0.0005315,31]
[312922176,1706461873162,-500.0,0.0005315,31]
[312922177,1706461873174,-1006.81,0.0005315,2]
[312922178,1706461873186,-500.0,0.0005315,31]
[312922179,1706461873199,-500.0,0.0005315,31]
[312922180,1706461873211,-500.0,0.0005315,31]
[312922181,1706461873223,-500.0,0.0005315,31]
[312922182,1706461873236,-500.0,0.0005315,31]
[312922183,1706461873248,-625.02,0.0005315,31]
[312922184,1706461873260,-500.0,0.0005315,31]
[312922185,1706461873272,-500.0,0.0005315,31]
[312922186,1706461873284,-500.0,0.0005315,31]
[312922187,1706461873296,-535.45348414,0.0005315,31]
[312922188,1706461873308,-500.0,0.0005315,31]
[312922189,1706461873320,-1325.01,0.0005315,31]
[312922190,1706461873332,-537.17,0.0005315,31]
[312922191,1706461873344,-753.5,0.0005315,31]
[312922192,1706461873359,-500.0,0.0005315,31]
[312922193,1706461873371,-998.26,0.0005315,2]
[312922194,1706461873384,-500.0,0.0005315,20]
[312922195,1706461873396,-473.17728813,0.0005315,31]
[312922196,1706461873407,-500.0,0.0005315,31]
[312922197,1706461873419,-500.0,0.0005315,31]
[312922198,1706461873431,-500.0,0.0005315,31]
[312922199,1706461873443,-500.0,0.0005315,31]
[312922200,1706461873455,-1182.48,0.0005315,31]
[312922201,1706461873467,-500.0,0.0005315,31]
[312922202,1706461873480,-500.0,0.0005315,31]
[312922203,1706461873495,-500.0,0.0005315,31]
[312922204,1706461873507,-500.0,0.0005315,31]
[312922205,1706461873520,-500.0,0.0005315,31]
[312922206,1706461873533,-1000.0,0.0005315,7]
[312922207,1706461873548,-996.46,0.0005315,31]
[312922208,1706461873561,-500.0,0.0005315,31]
[312922209,1706461873573,-500.0,0.0005315,31]
[312922210,1706461873586,-500.0,0.0005315,31]
[312922211,1706461873598,-500.0,0.0005315,2]
[312922212,1706461873610,-500.0,0.0005315,31]
[312922213,1706461873623,-500.0,0.0005315,31]
[312922214,1706461873635,-500.0,0.0005315,31]
[312922215,1706461873648,-500.0,0.0005315,15]
[312922216,1706461873660,-500.0,0.0005315,31]
[312922217,1706461873672,-500.0,0.0005315,31]
[312922218,1706461873685,-500.0,0.0005315,31]
[312922219,1706461873698,-500.0,0.0005315,31]
[312922220,1706461873709,-500.0,0.0005315,31]
[312922221,1706461873724,-994.13,0.0005315,2]
[312922222,1706461873736,-1132.61,0.0005315,31]
[312922223,1706461873748,-500.0,0.0005315,31]
[312922224,1706461873759,-500.0,0.0005315,31]
[312922225,1706461873772,-500.0,0.0005315,31]
[312922226,1706461873783,-500.0,0.0005315,31]
[312922227,1706461873795,-500.0,0.0005315,31]
[312922228,1706461873808,-855.69,0.0005315,31]
[312922229,1706461873820,-500.0,0.0005315,31]
[312922230,1706461873832,-500.0,0.0005315,31]
[312922231,1706461873844,-500.0,0.0005315,31]
[312922232,1706461873856,-500.0,0.0005315,31]
[312922233,1706461873869,-574.75,0.0005315,31]
[312922234,1706461873880,-500.0,0.0005315,31]
[312922235,1706461873892,-500.0,0.0005315,31]
[312922236,1706461873904,-1000.0,0.0005315,7]
[312922237,1706461873916,-500.0,0.0005315,31]
[312922238,1706461873928,-500.0,0.0005315,31]
[312922239,1706461873940,-500.0,0.0005315,31]
[312922240,1706461873952,-535.37000796,0.0005315,31]
[312922241,1706461873963,-500.0,0.0005315,31]
[312922242,1706461873975,-500.0,0.0005315,31]
[312922243,1706461873988,-500.0,0.0005315,31]
[312922244,1706461874005,-500.0,0.0005315,31]
[312922245,1706461874016,-500.0,0.0005315,31]
[312922246,1706461874028,-500.0,0.0005315,31]
[312922247,1706461874041,-500.0,0.0005315,31]
[312922248,1706461874054,-500.0,0.0005315,31]
[312922249,1706461874065,-586.82,0.0005315,31]
[312922250,1706461874076,-500.0,0.0005315,31]
[312922251,1706461874088,-500.0,0.0005315,31]
[312922252,1706461874100,-683.8,0.0005315,31]
[312922253,1706461874112,-500.0,0.0005315,31]
[312922254,1706461874124,-1566.51,0.0005315,2]
[312922255,1706461874136,-500.0,0.0005315,31]
[312922256,1706461874148,-500.0,0.0005315,31]
[312922257,1706461874159,-565.72,0.0005315,31]
[312922258,1706461874171,-500.0,0.0005315,31]
[312922259,1706461874188,-500.0,0.0005315,31]
[312922260,1706461874199,-500.0,0.0005315,31]
[312922261,1706461874211,-1000.0,0.0005315,2]
[312922262,1706461874223,-500.0,0.0005315,31]
[312922263,1706461874235,-500.0,0.0005315,31]
[312922264,1706461874247,-500.0,0.0005315,31]
[312922265,1706461874259,-3622.82,0.0005315,5]
[312922266,1706461874270,-500.0,0.0005315,31]
[312922267,1706461874283,-500.0,0.0005315,31]
[312922268,1706461874295,-500.0,0.0005315,31]
[312922269,1706461874308,-500.0,0.0005315,31]
[312922270,1706461874533,-500.0,0.0005315,31]
[312922271,1706461874553,-500.0,0.0005315,31]
[312922272,1706461874564,-500.0,0.0005315,31]
[312922273,1706461874574,-500.0,0.0005315,31]
[312922274,1706461874583,-500.0,0.0005315,31]
[312922275,1706461874592,-500.0,0.0005315,31]
[312922276,1706461874601,-575.7,0.0005315,31]
[312922277,1706461874611,-500.0,0.0005315,31]
[312922278,1706461874620,-890.64,0.0005315,2]
[312922279,1706461874630,-500.0,0.0005315,31]
[312922280,1706461874639,-500.0,0.0005315,31]
[312922281,1706461874648,-500.0,0.0005315,31]
[312922282,1706461874657,-1331.21,0.0005315,31]
[312922283,1706461874666,-500.0,0.0005315,31]
[312922284,1706461874676,-649.36,0.0005315,31]
[312922285,1706461874684,-500.0,0.0005315,31]
[312922286,1706461874694,-500.0,0.0005315,31]
[312922287,1706461874703,-1008.2,0.0005315,31]
[312922288,1706461874712,-500.0,0.0005315,31]
[312922289,1706461874721,-500.0,0.0005315,31]
[312922290,1706461874731,-500.0,0.0005315,31]
[312922291,1706461874740,-500.0,0.0005315,31]
[312922292,1706461874749,-150.34028937,0.0005315,60]
[312922293,1706461874758,-500.0,0.0005315,31]
[312922294,1706461874767,-350.52011421,0.0005315,31]
[312922295,1706461874776,-500.0,0.0005315,31]
[312922296,1706461874785,-500.0,0.0005315,31]
[312922297,1706461874794,-500.0,0.0005315,31]
[312922298,1706461874804,-500.0,0.0005315,31]
[312922299,1706461874813,-687.11,0.0005315,31]
[312922300,1706461874822,-500.0,0.0005315,31]
[312922301,1706461874831,-500.0,0.0005315,31]
[312922302,1706461874840,-707.32,0.0005315,31]
[312922303,1706461874849,-500.0,0.0005315,31]
[312922304,1706461874857,-2295.74,0.0005315,31]
[312922305,1706461874866,-709.25,0.0005315,31]
[312922306,1706461874875,-500.0,0.0005315,31]
[312922307,1706461874885,-500.0,0.0005315,31]
[312922308,1706461874894,-500.0,0.0005315,31]
[312922309,1706461874904,-642.2,0.0005315,31]
[312922310,1706461874913,-500.0,0.0005315,31]
[312922311,1706461874922,-500.0,0.0005315,31]
[312922312,1706461874931,-500.0,0.0005315,31]
[312922313,1706461874940,-834.44,0.0005315,31]
[312922314,1706461874950,-500.0,0.0005315,31]
[312922315,1706461874959,-1117.28,0.0005315,31]
[312922316,1706461874968,-500.0,0.0005315,31]
[312922317,1706461874977,-500.0,0.0005315,31]
[312922318,1706461874986,-214.14316383,0.0005315,31]